Cogmind - Beta 16 @@@ ROGUE MODE // 2025.12.03 @ 17:21:06 Player: ClassActJerk Result: Destroyed by EZ-ISK(R) with Subdweller Beam Cannon Performance ------------- Evolutions (0) 0 Regions Visited (2) 400 Robots Destroyed (8) 40 Value Destroyed (249) 249 Prototype IDs (0) 0 Alien Tech Used (0) 0 Bonus (0) 0 TOTAL SCORE: 689 Bonus ------- None Cogmind --------- Core Integrity 0/250 Matter 238/300 Energy 100/100 System Corruption 2% Temperature Cool (9) Movement Core (1450) Ox28 Location -10/Subcaves Parts ------- > --- POWER (1) -------- (None) > --- PROPULSION (2) --- (None) > --- UTILITY (2) ------ Huge Storage Unit Weapon Shielding > --- WEAPON (2) ------- Light Assault Rifle Grenade Launcher > --- INVENTORY (25) --- Medium Laser Assault Rifle Assault Rifle Light Assault Rifle Mining Laser Peak State ------------ > --- POWER ------------ Ion Engine > --- PROPULSION ------- Light Treads Light Treads > --- UTILITY ---------- Huge Storage Unit Weapon Shielding > --- WEAPON ----------- Medium Laser Light Assault Rifle > --- INVENTORY -------- Ion Engine Small Storage Unit Assault Rifle Assault Rifle Light Assault Rifle Grenade Launcher Mining Laser [Rating: 7] Favorites ----------- Power Ion Engine Engine Ion Engine Propulsion Light Treads Treads Light Treads Utility Small Storage Unit Storage Small Storage Unit Protection Weapon Shielding Weapon Light Assault Rifle Energy Gun Medium Laser Ballistic Gun Light Assault Rifle Launcher Grenade Launcher Build | -11 -10 -10 ------- Run | Yrd Mat Sub Slots Evolved . | . . . Power . | . . . Propulsion . | . . . Utility . | . . . Weapon . | . . . Parts Attached 10 | 6 3 1 Power 2 | 1 1 . Engine 2 | 1 1 . Core . | . . . Reactor . | . . . Propulsion 2 | 2 . . Treads 2 | 2 . . Leg . | . . . Wheel . | . . . Hover . | . . . Flight . | . . . Utility 3 | 1 2 . Device . | . . . Storage 2 | 1 1 . Processor . | . . . Hackware . | . . . Protection 1 | . 1 . Artifact . | . . . Weapon 3 | 2 . 1 Energy Gun 1 | 1 . . Energy Cannon . | . . . Ballistic Gun 1 | 1 . . Ballistic Cannon . | . . . Launcher 1 | . . 1 Special Weapon . | . . . Impact Weapon . | . . . Slashing Weapon . | . . . Piercing Weapon . | . . . Special Melee Weapon . | . . . Unidentified Prototypes . | . . . Parts Lost 3 | . . 3 Power 1 | . . 1 Propulsion 2 | . . 2 Utility . | . . . Weapon . | . . . Highest Loss Streak 3 | . . 3 To Critical Strikes . | . . . Average Backups 4 | 3 4 5 Power . | 1 . . Propulsion . | . . . Utility . | . . . Weapon 3 | . 3 5 Tool/Special . | . . . Unused Backups 4 | . . 4 Power . | . . . Propulsion . | . . . Utility . | . . . Weapon 4 | . . 4 Tool/Special . | . . . Average Slot Usage (%) 88 | . 86 96 Engine 13 | . 14 13 Treads 27 | . 28 25 Storage 14 | . 14 14 Protection 4 | . 1 14 Energy Gun 11 | . 14 . Ballistic Gun 14 | . 14 14 Launcher 2 | . . 14 Peak Build Rating 7 | 6 7 7 Average Rating 5 | 2 6 6 On Entrance 4 | . 6 7 Avg Prop Armor Cover (%) . | . . . Naked Turns . | . . . Heaviest Build 90 | 13 89 90 Greatest Support 40 | 40 40 40 Greatest Overweight (x) 29 | . 2 29 Average Overweight (x) . | . . 2 Largest Inventory Capacity 25 | 8 25 25 Average Capacity 12 | 5 10 25 Most Carried 8 | 5 8 5 Average Carried 4 | 3 4 5 Final Capacity 25 | 8 25 25 Final Carried 5 | 2 5 5 Class Distribution -------------------- 100% | Mutant Dominant Class ---------------- Mutant | -10/Materials Mutant | -10/Subcaves Resources | -11 -10 -10 ----------- Run | Yrd Mat Sub Matter Collected 300 | 235 39 26 Remotely . | . . . Salvage Created 283 | . 217 66 Parts 19 | . 13 6 Haulers Intercepted . | . . . Recyclers Shooed . | . . . Parts Field Recycled . | . . . Retrieved Matter . | . . . Parts Self-Destructed . | . . . Prevented . | . . . Parts Restored . | . . . Kills | -11 -10 -10 ------- Run | Yrd Mat Sub Combat Hostiles Destroyed 8 | . 6 2 Guns 6 | . 6 . AOE 2 | . . 2 Classes Destroyed 4 | . 2 2 Swarmer 2 | . 2 . Grunt 4 | . 4 . Artisan 2 | . . 2 Subdweller 2 | . . 2 Best Kill Streak 2 | . 2 2 Combat Bots Only 2 | . 2 2 Max Kills in Single Turn 1 | . 1 1 Gunslinging . | . . . Exploded 1 | . . 1 Melee . | . . . Uniques/NPCs Destroyed . | . . . Combat | -11 -10 -10 -------- Run | Yrd Mat Sub Hostile Shots Fired 65 | . 44 21 Missed 19 | . 15 4 Hits 46 | . 29 17 Projectile 46 | . 29 17 Critical Strikes 2 | . . 2 Damage Taken 869 | . 348 521 Core 264 | . 46 218 Absorbed by Shields . | . . . Redirected to Shielding 34 | . . 34 Core Remaining (%) 100 | 100 . . Volleys Fired 27 | 1 21 5 Largest 2 | 2 2 2 Hottest 70 | 70 70 50 Shots Fired 54 | 2 42 10 Gun 49 | 2 42 5 Cannon . | . . . Launcher 5 | . . 5 Special . | . . . Kinetic 27 | 1 21 5 Thermal 22 | 1 21 . Explosive 5 | . . 5 Electromagnetic . | . . . Robot Hit Streak 7 | 2 4 7 Robot Miss Streak 2 | . 2 1 Penetration Max . | . . . Secondary Targets . | . . . Shots Hit Robots 38 | 2 27 9 Core Hits 21 | . 12 9 Critical Kills . | . . . Critical Parts Destroyed . | . . . Critical Strikes 1 | . 1 . Burn 1 | . 1 . Melee Attacks . | . . . Impact . | . . . Slashing . | . . . Piercing . | . . . Sneak Attacks . | . . . Combat Hostiles . | . . . Follow-up Attacks . | . . . Damage Inflicted 786 | 18 273 495 Guns 326 | 18 273 35 Cannons . | . . . Explosions 460 | . . 460 Melee . | . . . Ramming . | . . . Kinetic 164 | 6 123 35 Thermal 162 | 12 150 . Explosive 460 | . . 460 Electromagnetic . | . . . Impact . | . . . Slashing . | . . . Piercing . | . . . Highest Corruption 2 | . 2 2 Average Corruption 1 | . 1 2 Corruption Purged . | . . . Corruption Blocked . | . . . Effects 2 | . 1 1 Message Errors 1 | . 1 . Data Loss (major) 1 | . . 1 Overload Shots . | . . . Overflow Damage 8 | . . 8 Projectiles . | . . . Explosions 8 | . . 8 Melee . | . . . Knockbacks . | . . . Impact . | . . . Kinetic . | . . . Secondary . | . . . Self-Inflicted Damage 110 | . . 110 Shots 5 | . . 5 Rammed . | . . . Targets Rammed . | . . . Kicked . | . . . Crushed . | . . . Highest Temperature 282 | 30 282 . Average Temperature 116 | 18 120 . Received Heat Transfer 183 | . 129 54 Siege Activations . | . . . Martial Activations . | . . . Shielding Activations . | . . . Robots Disrupted . | . . . Combat Hostiles . | . . . Robots Corrupted . | . . . Combat Hostiles . | . . . Parts Fried . | . . . Impact Corruptions . | . . . Robots Melted . | . . . Combat Hostiles . | . . . Parts Melted . | . . . Heat Transferred 555 | 37 518 . Parts Sabotaged . | . . . Parts Stolen . | . . . Parts Stripped . | . . . Power Chain Reactions . | . . . Alert | -11 -10 -10 ------- Run | Yrd Mat Sub Maximum Alert Level . | . . . Low Security (%) 100 | 100 100 . Level 1 . | . . . Level 2 . | . . . Level 3 . | . . . Level 4 . | . . . Level 5 . | . . . High Security . | . . . Max Security . | . . . Peak Influence 118 | . 118 . Initial . | . . . Average 25 | . 27 . Influence Increases 150 | . 150 . Destroy 0b10 Robot/C 120 | . 120 . Destroy Leader 30 | . 30 . Influence Decreases 150 | . 88 62 Entered New Map 30 | . . 30 Time Decay 120 | . 88 32 Squads Dispatched 4 | . 4 . Investigation 2 | . 2 . Extermination . | . . . Reinforcement 2 | . 2 . Assault . | . . . Garrison . | . . . Intercept . | . . . Searches Triggered . | . . . Construction Impeded . | . . . Haulers Reinforced . | . . . Active Scanning Responses . | . . . Cargo Convoy Interrupts . | . . . Stealth | -11 -10 -10 --------- Run | Yrd Mat Sub Distress Signals 1 | . 1 . Communications Jammed . | . . . Distress Signals . | . . . Times Spotted 15 | . 11 4 Peak Tracking Total 6 | . 6 2 Tactical Retreats . | . . . Traps | -11 -10 -10 ------- Run | Yrd Mat Sub Traps Triggered 3 | . 3 . Indirectly . | . . . Trap Hack Attempts . | . . . Triggered . | . . . Disarmed . | . . . Reprogrammed . | . . . Reused . | . . . Traps Extracted . | . . . Installed . | . . . Triggered . | . . . Machines | -11 -10 -10 ---------- Run | Yrd Mat Sub Machines Disabled . | . . . Max in Single Turn . | . . . Machines Repaired . | . . . Machines Dismantled . | . . . Machines Sabotaged . | . . . Overloaded Fab Kills . | . . . Hacking | -11 -10 -10 --------- Run | Yrd Mat Sub Machines Accessed 2 | . 2 . Terminals 2 | . 2 . Fabricators . | . . . Repair Stations . | . . . Recycling Units . | . . . Scanalyzers . | . . . Garrison Access . | . . . Total Hacks 5 | . 5 . Successful . | . . . Failed 5 | . 5 . Catastrophic 3 | . 3 . Database Lockouts . | . . . Manual 5 | . 5 . Terminals 5 | . 5 . Fabricators . | . . . Repair Stations . | . . . Recycling Units . | . . . Scanalyzers . | . . . Garrison Access . | . . . Terminal Hacks . | . . . Fabricator Hacks . | . . . Repair Station Hacks . | . . . Recycling Unit Hacks . | . . . Scanalyzer . | . . . Garrison Access Hacks . | . . . Unauthorized Hacks . | . . . Terminals . | . . . Fabricators . | . . . Repair Stations . | . . . Recycling Units . | . . . Scanalyzers . | . . . Garrison Access . | . . . Data Cores Recovered . | . . . Used . | . . . Hacking Detections 2 | . 2 . Full Trace Events 2 | . 2 . Feedback Events . | . . . Feedback Blocked . | . . . Robot Schematics Acquired . | . . . Robots Built . | . . . Authchips . | . . . Time . | . . . Total Robot Build Rating . | . . . Part Schematics Acquired . | . . . Parts Built . | . . . Authchips . | . . . Time . | . . . Total Part Build Rating . | . . . Part Studies Acquired . | . . . Parts Repaired . | . . . Time . | . . . Parts Recycled . | . . . Recycled Matter . | . . . Retrieved Matter . | . . . Retrieved Components . | . . . Parts Scanalyzed . | . . . Part Schematics Acquired . | . . . Parts Damaged . | . . . Bothacking | -11 -10 -10 ------------ Run | Yrd Mat Sub Used RIF Installer . | . . . Robots Hacked . | . . . Non-combat . | . . . Combat . | . . . Robot Hacks Applied . | . . . Relay Couplers Released . | . . . Fabnet Peak Effective % . | . . . Robots Rewired . | . . . Allies Hacked . | . . . Hacks Repelled . | . . . Allies | -11 -10 -10 -------- Run | Yrd Mat Sub Total Allies . | . . . Largest Group . | . . . Highest-Rated Group . | . . . Highest-Rated Ally . | . . . Total Orders . | . . . Ally Attacks . | . . . Total Damage . | . . . Kills . | . . . Allies Corrupted . | . . . Allies Melted . | . . . Intel | -11 -10 -10 ------- Run | Yrd Mat Sub Active Infowar (turns) . | . . . Robot Analysis Total . | . . . Derelict Logs Recovered 1 | . . 1 Drone Launches . | . . . Drone Recoveries . | . . . Exploration | -11 -10 -10 ------------- Run | Yrd Mat Sub Turns Passed 804 | 57 610 137 Spaces Moved 332 | 38 258 36 Core 19 | 18 . 1 Treads 313 | 20 258 35 Legs . | . . . Wheels . | . . . Hover . | . . . Flight . | . . . Fastest Speed 50 | 50 160 320 Average Speed 188 | 107 177 352 Slowest Speed 1500 | 160 320 1500 Overloaded Moves . | . . . Propulsion Burnouts . | . . . Robots Hopped . | . . . Potential Cave-ins . | . . . Cave-ins Triggered . | . . . Exploration Rate (%) 15 | 3 36 6 Regions Visited 2 Branch Regions 1 Pre-discovered Areas . | . . . Known Exits Taken . | . . . Unknown Exits Taken 2 | 1 1 . Scrap Searched . | . . . Spaces Dug . | . . . Terrain Destroyed 19 | . . 19 Melee . | . . . Projectile . | . . . AOE 19 | . . 19 Terrain Rammed . | . . . Walls Destroyed . | . . . Machines Disabled . | . . . Actions | -11 -10 -10 --------- Run | Yrd Mat Sub Total 466 | 51 373 42 Wait 86 | 2 84 . Move 330 | 37 257 36 Hop . | . . . Pick Up 11 | 5 6 . Fast Attach 3 | 3 . . Attach 4 | 3 1 . Detach . | . . . Swap 3 | . 2 1 Drop 2 | . 2 . Fire 27 | 1 21 5 Melee . | . . . Ram . | . . . Kick . | . . . Crush . | . . . Escape Stasis . | . . . Rewire . | . . . Trap . | . . . Miscellaneous . | . . . Route ------- -11/Scrapyard -10/Materials (discovered 2 exits: [*Min] / [*Sub]) -10/Subcaves History --------- Turn | Location | Event 5 | -11/Scrapyard | Discovered new exit (range 15) 58 | -11/Scrapyard | Entered Materials 310 | -10/Materials | Discovered new exit (range 6) 314 | -10/Materials | Build established: Mutant 512 | -10/Materials | Discovered new exit (range 9) 668 | -10/Materials | Entered Subcaves 683 | -10/Subcaves | Learned Materials terminal intel 794 | -10/Subcaves | Core integrity fell below 50% 804 | -10/Subcaves | Core integrity fell below 20% 805 | -10/Subcaves | Destroyed by EZ-ISK(R) with Subdweller Beam Cannon Last Messages --------------- 00696_ Acquired 14 matter. 00705_ Acquired 12 matter. 00715_ System corrupted: Substantial component data lost. 00776_ DG-KIR(u) builds Twisted Machinery. 00782_ 2Q-Z50(u) cries out in pain. 00782_ 2Q-Z50(u) destroyed. 00783_ Lgt. Treads destroyed. 00785_ DG-KIR(u) cries out in pain. 00785_ DG-KIR(u) destroyed. 00788_ Y7-7P3(R) destroyed. 00789_ EZ-ISK(R): "ARGHSUB!" 00790_ Lgt. Treads destroyed. 00790_ Destroyed Lgt. Treads. 00793_ Subatomizers dissect the Sub. Power Source. 00793_ Destroyed Scrap Shield. 00793_ 7O-TEA(R) destroyed. 00797_ Ion Engine destroyed. 00805_ Subatomizers dissect the Sub. Monowheel. Map ----- +----------------------------------------------------+ | ?????????????????????????????????????????????????? | | ?????????????????????????????????????????????????? | | ?????????????????????????????????????????????????? | | ?????????????????????????????????????????????????? | | ?????????????????????????????????????????????????? | | ?????????????????????????????????????????????????? | | ?????????????????????????????????????????????????? | | ?????????????????????????????????????????????????? | | ?????????????????????????????????????????????????? | | ?????????????????????????????????????????????????? | | ??????????????????????????? ?????????????????????? | | ??????????????????????????? ?????????????????????? | | ??????????????????????????#" ????????????????????? | | ?????????????????????????##""????????????????????? | | ?????????????????????????# ????????????????????? | | ?????????????????????????? ????????????????????? | | ?????????????????????????## ????????????????????? | | ?????????????????????????# #???????????????????? | | ??????????????? ????????# ???????????????????? | | ?????????????? ????????# ###?????????? ??????? | | ?????????????? ?????### R ##???????? ??????? | | ????????????? ??? ## #???????" ""#????? | | ??????????? ?## #???????" " ????? | | ???????????# # R ########"""""????? | | ????????????# " ## #"""""""""????? | | ????????????# "##@ % """"""""" ???? | | ???????????% ??# = """"" ???? | | ???????????? ## ????# ##### """"" ???? | | ??????????????# ??????## # ## #?## ??? | | ??????????????#?????????## " "#?#? #??#### ?? | | ????????????????????????""## #??? #?????? ? | | ??????????????????????? ?? #??? ??????? ? | | ??????????????????????# ??# ??? #????????? | | ????????????????????? ???# ?? #????????? | | ???????????????????? "????# ?? ? ????????? | | ??????????????????? # #""?????# ?? ?" ???????? | | ?????????????????? ?##?"???????# ?#"? #??????? | | ??????????????????#?????????????? #? ?? ???????? | | ?????????????????????????????????????????????????? | | ?????????????????????????????????????????????????? | | ?????????????????????????????????????????????????? | | ?????????????????????????????????????????????????? | | ?????????????????????????????????????????????????? | | ?????????????????????????????????????????????????? | | ?????????????????????????????????????????????????? | | ?????????????????????????????????????????????????? | | ?????????????????????????????????????????????????? | | ?????????????????????????????????????????????????? | | ?????????????????????????????????????????????????? | | ?????????????????????????????????????????????????? | +----------------------------------------------------+ Best States ------------- Heat Dissipation 25 Energy Generation 10 Energy Capacity 250 Matter Stores 300 Matter Capacity 300 Sight Range 16 Terrain Scan Density 10 Weapon Shielding 33 Evasion (%) 50 Recoil Reduction 2 Item Schematics ----------------- None Robot Schematics ------------------ None Fabricated ------------ Nothing Repaired ---------- Nothing Studied --------- None Alien Tech Used ----------------- None Achievements -------------- None Challenges ------------ None Game ------ Seed PitchforkThunderFlail Manual? 0 Play Time 00:06:30 Cumulative 39.2 hours Start 2025.12.03 @ 17:14:47 End 2025.12.03 @ 17:21:06 Sessions 1 Manual Loads 0 Difficulty Rogue Special Mode None Game No. 118 Rogue 118 Adventurer 0 Explorer 0 Win Type - Total 0 Types 0/0/0/0/0/0/0/0/0/0 Lore% 16 Gallery% 27 Achievement% 20 Wizard Run 0 Options --------- Layout 1 ASCII 0 Keyboard 0 Movement Mouse Keybinds 0 Fullscreen 1 Font 24/Terminus Map View 50x35 Zoom Use 0% Tactical HUD 1 Map Filters NONE Filters NONE Steam 1 RUN: b38783e9-e43e-4b66-acf2-28d6820130cb